bitfinex/quotes_ETHUSD_20250324
["timestamp","ask_amount","ask_price","bid_price","bid_amount"]
[1742857467625,4.81231,2078.0,2077.9,4.586]
[1742857468726,5.95134905,2078.1,2077.9,4.586]
[1742857469139,10.8418705,2078.2,2077.9,4.586]
[1742857469330,6.0299905,2078.2,2077.9,4.586]
[1742857469744,10.8418805,2078.2,2077.9,4.586]
[1742857470866,5.36221,2078.1,2077.6,1e-05]
[1742857471167,9.62491,2078.0,2077.6,1e-05]
[1742857471326,4.81259,2077.9,2077.6,1e-05]
[1742857471527,4.81241,2078.0,2077.6,1e-05]
[1742857472263,9.62493,2078.0,2077.6,1e-05]
[1742857472568,4.81241,2078.0,2077.6,1e-05]
[1742857473570,4.81256,2077.9,2077.6,1e-05]
[1742857475270,9.6253,2077.9,2077.6,1e-05]
[1742857475478,4.81256,2077.9,2077.6,1e-05]
[1742857476047,10.8425505,2077.9,2077.6,1e-05]
[1742857487691,6.0299905,2077.9,2077.6,1e-05]
[1742857487894,10.8425505,2077.9,2077.6,1e-05]
[1742857489890,0.55,2077.8,2077.6,1e-05]
[1742857490190,4.81301,2077.7,2077.6,1e-05]
[1742857490601,10.8430005,2077.8,2077.6,1e-05]
[1742857490602,6.0299905,2077.8,2077.6,1e-05]
[1742857490804,6.0299905,2077.8,2077.6,0.12761]
[1742857492000,6.0299905,2077.8,2077.6,4.94084]
[1742857492295,6.0299905,2077.8,2077.6,0.12761]
[1742857493690,10.8423505,2078.0,2077.6,0.12761]
[1742857494364,12.48459755,2078.0,2077.6,0.12761]
[1742857495997,17.29708755,2078.0,2077.6,0.12761]
[1742857497298,4.81255,2077.9,2077.6,0.12761]
[1742857497912,17.29707755,2078.0,2077.6,0.12761]
[1742857498484,4.81256,2077.9,2077.6,0.12761]
[1742857500106,12.48462755,2078.0,2077.6,0.12761]
[1742857500307,17.29713755,2078.0,2077.6,0.12761]
[1742857500729,12.48462755,2078.0,2077.6,0.12761]
[1742857500879,17.29709755,2078.0,2077.6,0.12761]
[1742857501725,12.48462755,2078.0,2077.6,0.12761]
[1742857502077,4.81257,2077.9,2077.6,0.12761]
[1742857503977,4.81257,2077.9,2077.6,1e-05]
[1742857504181,6.61908375,2077.9,2077.6,1e-05]
[1742857504580,1.80651375,2077.9,2077.6,1e-05]
[1742857504835,17.29706755,2078.0,2077.6,1e-05]
[1742857504974,4.81264,2077.9,2077.6,1e-05]
[1742857508232,9.62536,2077.9,2077.6,1e-05]
[1742857508412,9.6253,2077.9,2077.6,1e-05]
[1742857508586,4.81264,2077.9,2077.6,1e-05]
[1742857508786,11.43185976,2077.9,2077.6,1e-05]
[1742857509024,6.61915976,2077.9,2077.6,1e-05]
[1742857509319,1.80651976,2077.9,2077.6,1e-05]
[1742857511192,10.8423305,2078.0,2077.6,1e-05]
[1742857512727,15.6548405,2078.0,2077.6,1e-05]
[1742857512929,4.81257,2077.9,2077.6,1e-05]
[1742857513236,4.81301,2077.7,2077.6,1e-05]
[1742857514329,6.7939905,2078.2,2077.7,4.9405]
[1742857514512,6.7939905,2078.2,2077.9,4.81247]
[1742857514513,6.0299905,2078.2,2077.9,4.81247]
[1742857514687,6.0299905,2078.2,2078.0,4.555]
[1742857514893,10.8419405,2078.2,2078.0,4.555]
[1742857515195,11.25858405,2078.1,2077.8,0.1276]
[1742857515414,5.89627405,2078.1,2077.8,4.6856]
[1742857515624,6.0299905,2078.2,2077.8,4.558]
[1742857515799,6.0299905,2078.2,2078.0,4.81229]
[1742857516008,0.764,2078.7,2078.1,0.1276]
[1742857516203,0.764,2078.7,2078.3,0.1276]
[1742857516204,10.8409205,2078.6,2078.3,0.1276]
[1742857516520,1.56517705,2078.5,2078.3,4.6916]
[1742857516833,6.37636705,2078.5,2078.3,4.6916]
[1742857517131,1.56517705,2078.5,2078.3,4.6916]
[1742857517505,6.0299905,2078.6,2078.3,4.6916]
[1742857517904,10.8409305,2078.6,2078.3,4.6916]
[1742857518807,6.0299905,2078.6,2078.3,4.6916]
[1742857519297,10.8409405,2078.6,2078.3,4.6916]
[1742857520609,6.0299905,2078.6,2078.3,4.6916]
[1742857521340,6.0299905,2078.6,2078.3,6.15997294]
[1742857521653,10.8409705,2078.6,2078.3,6.15997294]
[1742857522032,4.81117,2078.5,2078.3,4.6916]
[1742857522241,4.81117,2078.5,2078.3,4.564]
[1742857525441,4.81156,2078.4,2077.9,4.94014]
[1742857525631,5.36116,2078.5,2078.1,4.553]
[1742857525835,8.36128,2078.5,2078.1,4.6806]
[1742857526424,4.81149,2078.4,2078.1,4.6806]
[1742857528744,10.7914805,2078.4,2078.1,4.6806]
[1742857529053,10.7914805,2078.4,2078.1,6.11114]
[1742857529355,10.7914805,2078.4,2078.1,4.6806]
[1742857529514,10.7914805,2078.4,2078.1,4.553]
[1742857529715,4.81177,2078.3,2078.1,4.553]
[1742857530547,1.3576,2078.3,2077.7,25.5676]
[1742857530749,4.81267,2077.9,2077.8,4.552]
[1742857530950,10.8426605,2077.9,2077.7,29.997]
[1742857531140,10.8426605,2077.9,2077.7,4.557]
[1742857531334,0.49888125,2077.8,2077.7,4.557]
[1742857531707,0.49888125,2077.8,2077.6,1e-05]
[1742857531911,0.49888125,2077.8,2077.6,4.55801]
[1742857532137,4.81301,2077.7,2077.6,1e-05]
[1742857532526,5.2994038,2077.7,2077.6,1e-05]
[1742857533449,0.4863938,2077.7,2077.6,1e-05]
[1742857533826,4.81288,2077.8,2077.6,1e-05]
[1742857534027,0.4863938,2077.7,2077.6,1e-05]
[1742857534425,4.81288,2077.8,2077.6,1e-05]
[1742857534631,0.48616867,2077.7,2077.6,1e-05]
[1742857535032,4.81288,2077.8,2077.6,1e-05]
[1742857535232,0.48616867,2077.7,2077.6,1e-05]
[1742857535653,4.81288,2077.8,2077.6,1e-05]
[1742857535868,0.48616867,2077.7,2077.6,1e-05]
[1742857536259,9.62584,2077.8,2077.6,1e-05]
[1742857536459,0.48616867,2077.7,2077.6,1e-05]
[1742857536765,9.62584,2077.8,2077.6,1e-05]
[1742857536937,0.48616867,2077.7,2077.6,1e-05]
[1742857537452,4.81288,2077.8,2077.6,1e-05]
[1742857537669,0.48616867,2077.7,2077.6,1e-05]
[1742857538034,4.81288,2077.8,2077.6,1e-05]
[1742857538240,0.48616867,2077.7,2077.6,1e-05]
[1742857538637,4.81288,2077.8,2077.6,1e-05]
[1742857538937,0.48616867,2077.7,2077.6,1e-05]
[1742857539378,4.81288,2077.8,2077.6,1e-05]
[1742857539687,0.48596879,2077.7,2077.6,1e-05]
[1742857539970,4.81288,2077.8,2077.6,1e-05]
[1742857540170,0.48586885,2077.7,2077.6,1e-05]
[1742857540537,6.0299905,2077.9,2077.6,0.12761]
[1742857540784,0.48591882,2077.7,2077.6,5.409281]
[1742857541079,6.0299905,2077.9,2077.8,4.94038]
[1742857541571,6.47654384,2077.9,2077.8,4.94038]
[1742857542081,6.47654384,2077.9,2077.8,0.1276]
[1742857543463,0.44655334,2077.9,2077.8,0.1276]
[1742857543653,0.39655334,2077.9,2077.8,1.1498321]
[1742857544058,4.81186,2078.2,2077.8,1.1498321]
[1742857544252,0.41514654,2077.9,2077.8,0.1276]
[1742857544458,4.81186,2078.2,2077.8,4.94037]
[1742857545077,0.41516743,2078.1,2077.8,4.94037]
[1742857547040,0.41516743,2078.1,2077.8,0.1276]
[1742857547672,4.81234,2078.0,2077.8,0.1276]
[1742857547884,5.22736743,2078.1,2077.8,0.1276]
[1742857548040,0.41461638,2077.9,2077.8,0.1276]
[1742857548246,4.8122,2078.1,2077.8,0.1276]
[1742857548473,0.4145833,2077.9,2077.8,0.1276]
[1742857548642,4.8122,2078.1,2077.8,0.1276]
[1742857548844,0.4145833,2077.9,2077.8,0.1276]
[1742857549045,4.81232,2078.0,2077.6,0.12761]
[1742857549368,5.2272633,2077.9,2077.7,4.541]
[1742857549564,4.81278,2077.8,2077.6,1e-05]
[1742857549865,4.81278,2077.8,2077.7,4.542]
[1742857550072,4.81278,2077.8,2077.6,1e-05]
[1742857550243,4.81301,2077.7,2077.6,4.54301]
[1742857551286,5.22279631,2077.7,2077.6,4.54301]
[1742857552473,5.22279631,2077.7,2077.6,1e-05]
[1742857558177,11.25278681,2077.7,2077.6,1e-05]
[1742857558378,14.18921108,2077.7,2077.6,1e-05]
[1742857558578,15.54021108,2077.7,2077.6,1e-05]
[1742857559124,18.54021108,2077.7,2077.6,1e-05]
[1742857562514,18.90212625,2077.7,2077.6,1e-05]
[1742857564001,8.36347,2077.5,2076.7,4.535]
[1742857564217,4.81463,2077.0,2076.7,4.535]
[1742857564623,5.188561,2077.0,2076.7,4.535]
[1742857567366,6.524661,2077.0,2076.6,4.551]
[1742857567569,6.524661,2077.0,2076.6,4.555]
[1742857567870,6.524661,2077.0,2076.9,0.15]
[1742857569875,12.5546415,2077.0,2076.9,0.15]
[1742857570075,14.77296665,2077.0,2076.9,0.15]
[1742857572371,13.98686665,2077.0,2076.9,0.15]
[1742857574055,11.2185415,2077.0,2076.9,0.15]
[1742857579185,12.0046415,2077.0,2076.9,0.15]
[1742857579544,12.5546415,2077.0,2076.9,0.15]
[1742857579751,12.5046415,2077.0,2076.9,0.15]
[1742857580485,15.5046415,2077.0,2076.9,0.15]
[1742857580687,18.01796465,2077.0,2076.9,0.15]
[1742857594589,18.01796465,2077.0,2076.5,0.1221504]
[1742857594590,4.81556,2076.6,2076.5,0.1221504]
[1742857594766,8.36556,2076.6,2076.5,0.1221504]
[1742857594972,4.81634,2076.3,2075.9,9.35411]
[1742857595511,0.366473,2076.2,2075.9,9.35411]
[1742857595911,9.63279,2076.3,2075.9,4.537]
[1742857596098,0.36626225,2076.1,2075.9,4.81714]
[1742857596275,4.81659,2076.2,2075.9,4.535]
[1742857596607,4.81634,2076.3,2075.9,9.35218]
[1742857596815,0.36626225,2076.1,2075.9,4.535]
[1742857597109,4.8165,2076.2,2075.9,4.535]
[1742857597409,9.63317,2076.2,2075.9,4.535]
[1742857597610,0.36626225,2076.1,2075.8,30.27227]
[1742857597917,0.36626225,2076.1,2075.8,34.80527]
[1742857598411,0.36626225,2076.1,2075.8,29.988]
[1742857598602,0.36626225,2076.1,2075.8,38.30591]
[1742857599314,0.36626225,2076.1,2075.8,33.77291]
[1742857599541,0.36626225,2076.1,2075.9,4.533]
[1742857600030,0.34305054,2076.0,2075.9,9.34996]
[1742857600836,7.81604,2076.4,2075.9,14.16696]
[1742857601021,0.34305054,2076.0,2075.9,14.16696]
[1742857601190,4.81633,2076.3,2075.9,4.533]
[1742857601394,0.34305054,2076.0,2075.9,9.35007]
[1742857601740,7.81603,2076.4,2075.9,9.34998]
[1742857601911,0.34305054,2076.0,2075.9,9.34998]
[1742857602112,7.81603,2076.4,2075.9,14.16699]
[1742857602639,0.34368279,2076.3,2075.9,9.34998]
[1742857602823,5.16003279,2076.3,2075.9,9.34998]
[1742857603521,1.11758279,2076.3,2075.8,25.455]
[1742857603739,4.81682,2076.1,2075.7,5.01763]
[1742857603945,4.81731,2075.9,2075.7,0.2]
[1742857604245,5.15883129,2075.8,2075.7,0.2]
[1742857607163,0.34142129,2075.8,2075.7,0.2]
[1742857608060,5.15883129,2075.8,2075.7,0.2]
[1742857608864,0.34142129,2075.8,2075.7,0.2]
[1742857611067,5.15883129,2075.8,2075.7,0.2]
[1742857611274,0.34142129,2075.8,2075.7,0.2]
[1742857611773,5.15883129,2075.8,2075.7,0.2]
[1742857611983,0.34142129,2075.8,2075.7,0.2]
[1742857612474,5.15883129,2075.8,2075.7,0.2]
[1742857613380,0.34142129,2075.8,2075.7,0.2]
[1742857614765,5.15883129,2075.8,2075.7,0.2]
[1742857614968,0.34142129,2075.8,2075.7,0.2]
[1742857615443,6.0299805,2076.4,2075.7,4.734]
[1742857615644,10.8461605,2076.4,2075.9,4.81715]
[1742857616977,4.81626,2076.3,2075.9,4.81715]
[1742857617775,10.8460205,2076.4,2075.9,4.81715]
[1742857618194,15.6622505,2076.4,2075.9,4.81715]
[1742857618381,10.8460205,2076.4,2075.9,4.81715]
[1742857618750,10.8460205,2076.4,2075.9,4.81702]
[1742857619654,6.0299805,2076.4,2075.9,4.81702]
[1742857620280,10.8460305,2076.4,2075.9,4.81702]
[1742857620480,6.0299805,2076.4,2075.9,4.81702]
[1742857620797,6.0299805,2076.4,2076.0,5.34638371]
[1742857621098,6.0299805,2076.4,2076.0,0.52952371]
[1742857621298,6.0299805,2076.4,2076.0,4.81684]
[1742857622675,6.0299805,2076.4,2076.0,4.8168]
[1742857623093,6.0299805,2076.4,2076.1,4.81667]
[1742857623281,6.0299805,2076.4,2076.2,4.526]
[1742857623483,6.0299805,2076.5,2076.2,4.526]
[1742857623680,6.0299805,2076.5,2076.3,0.934262]
[1742857624300,6.0299805,2076.5,2076.2,4.526]
[1742857626966,0.31390342,2076.4,2076.2,4.526]
[1742857631608,5.13009342,2076.4,2076.0,4.52]
[1742857631766,9.94627342,2076.4,2076.0,4.52]
[1742857631972,5.13008342,2076.4,2076.0,4.52]
[1742857632499,5.13002342,2076.4,2076.0,4.52]
[1742857633407,4.81627,2076.3,2076.0,4.52]
[1742857633603,4.8165,2076.2,2076.0,4.52]
[1742857633905,4.8165,2076.2,2075.7,5.01763]
[1742857633906,5.13172084,2076.2,2075.7,0.2]
[1742857634103,4.81674,2076.1,2075.7,0.2]
[1742857634273,4.81674,2076.1,2075.8,4.519]
[1742857634474,0.31477961,2076.0,2075.8,4.519]
[1742857635008,10.8465005,2076.2,2075.8,4.519]
[1742857635205,0.31521906,2075.9,2075.7,0.2]
[1742857635378,4.81697,2076.0,2075.7,0.2]
[1742857635572,0.31521906,2075.9,2075.7,0.2]
[1742857637783,5.13248906,2075.9,2075.7,0.2]
[1742857637989,9.94988906,2075.9,2075.7,0.2]
[1742857638213,4.81741,2075.8,2075.7,0.2]
[1742857638426,5.12822372,2075.8,2075.7,0.2]
[1742857639516,5.89932372,2075.8,2075.7,0.2]
[1742857643020,14.15396164,2075.8,2075.7,0.2]
[1742857643228,4.81881,2075.2,2075.1,0.2]
[1742857643728,5.1273524,2075.2,2075.1,0.2]
[1742857643891,0.3085424,2075.2,2075.1,0.2]
[1742857644095,4.81867,2075.3,2075.1,0.2]
[1742857644317,0.3085424,2075.2,2075.1,0.2]
[1742857644733,4.81867,2075.3,2075.1,0.2]
[1742857644907,0.30715975,2075.2,2075.1,0.2]
[1742857645106,9.63742,2075.3,2075.1,0.2]
[1742857645302,5.12596975,2075.2,2075.1,0.2]
[1742857647047,0.30715975,2075.2,2075.1,5.01904]
[1742857647257,6.0299805,2075.7,2075.2,4.81867]
[1742857647545,6.0299805,2075.7,2075.3,4.81848]
[1742857648114,10.8477705,2075.7,2075.2,4.8188]
[1742857648310,10.8477705,2075.7,2075.2,9.63747]
[1742857648509,10.8477705,2075.7,2075.3,1.0842674]
[1742857649842,6.0299805,2075.7,2075.3,4.81847]
[1742857650355,4.81793,2075.6,2075.1,5.01895]
[1742857650531,4.81793,2075.6,2075.1,5.01893]
[1742857650736,4.81793,2075.6,2075.1,5.01891]
[1742857651314,4.81862,2075.3,2075.1,0.2]
[1742857652261,10.8481505,2075.5,2075.1,0.2]
[1742857653074,15.6664305,2075.5,2075.1,0.2]
[1742857653482,10.8481505,2075.5,2075.1,0.2]
[1742857653979,4.81836,2075.4,2075.1,0.2]
[1742857654852,4.81858,2075.3,2075.1,0.2]
[1742857655055,11.52706605,2075.3,2075.1,0.2]
[1742857655244,6.70833605,2075.3,2075.1,0.2]
[1742857655444,5.62348,2075.3,2075.1,0.2]
[1742857655681,4.81841,2075.4,2075.1,0.2]
[1742857655854,4.81869,2075.3,2075.1,0.2]
[1742857656059,9.63743,2075.3,2075.1,0.2]
[1742857656677,4.81881,2075.2,2075.1,0.2]
[1742857657074,5.09617094,2075.2,2075.1,0.2]
[1742857657397,0.27736094,2075.2,2075.1,0.2]
[1742857657596,4.81866,2075.3,2075.1,0.2]
[1742857657794,0.27736094,2075.2,2075.1,0.2]
[1742857658092,4.81866,2075.3,2075.1,0.2]
[1742857658285,0.27736094,2075.2,2075.1,0.2]
[1742857658485,9.63685,2075.4,2075.1,0.2]
[1742857658673,0.27736094,2075.2,2075.1,0.2]
[1742857658863,4.8186,2075.3,2075.1,0.2]
[1742857659063,0.27736094,2075.2,2075.1,0.2]
[1742857659264,4.8186,2075.3,2075.1,0.2]
[1742857659587,0.27736094,2075.2,2075.1,0.2]
[1742857659802,4.81881,2075.2,2075.1,0.2]
[1742857659984,5.09617094,2075.2,2075.1,0.2]
[1742857660580,5.09617094,2075.2,2074.6,4.82018]
[1742857660581,0.8049,2074.9,2074.4,4.82047]
[1742857660791,4.81959,2074.9,2074.5,5.1425604]
[1742857660982,0.27609145,2074.8,2074.5,6.13924344]
[1742857661198,0.09600307,2073.9,2073.7,0.9655791]
[1742857661371,0.2,2074.7,2073.8,4.82206]
[1742857661693,0.09600307,2075.0,2074.7,4.81977]
[1742857661878,0.09600307,2075.2,2074.5,6.720778]
[1742857662195,0.09600307,2075.0,2074.6,5.7922578]
[1742857662398,4.81984,2074.8,2074.5,4.937]
[1742857662765,9.63975,2074.8,2074.5,4.937]
[1742857663392,4.81982,2074.8,2074.5,4.937]
[1742857663796,5.72018307,2075.0,2074.5,0.04820185]
[1742857664095,4.91530307,2075.0,2074.6,4.82005]
[1742857664291,0.09600307,2075.0,2074.6,4.82005]
[1742857664503,0.09600307,2075.0,2074.7,4.81983]
[1742857664800,0.09600307,2075.0,2074.6,4.82005]
[1742857665101,0.09600307,2075.0,2074.6,4.82009]
[1742857665397,4.91529307,2075.0,2074.7,0.482009]
[1742857666095,0.09600307,2075.0,2074.7,0.482009]
[1742857666398,0.09600307,2075.0,2074.7,5.301979]
[1742857667301,0.09600307,2075.0,2074.7,5.301859]
[1742857667507,0.09600307,2075.0,2074.7,5.301849]
[1742857667687,0.09600307,2075.0,2074.8,1.0122049]
[1742857668205,4.81974,2074.8,2074.7,0.482009]
[1742857668370,0.09600307,2074.7,2074.4,4.939]
[1742857668576,4.91600307,2074.7,2074.5,4.922]
[1742857668881,0.09600307,2074.7,2074.5,4.922]
[1742857669411,0.09600307,2074.7,2074.4,4.82066]
[1742857669703,0.09600307,2074.7,2074.5,9.73835]
[1742857669910,6.0299805,2074.8,2074.5,9.73835]
[1742857670477,0.09600307,2074.7,2074.5,9.73835]
[1742857671013,0.09600307,2074.7,2074.5,4.918]
[1742857672195,0.27240596,2074.6,2074.5,4.918]
[1742857672591,0.27240596,2074.6,2074.4,9.72751]
[1742857672914,0.27240596,2074.6,2074.4,14.54803]
[1742857673411,0.27240596,2074.6,2074.4,9.72751]
[1742857673579,0.27240596,2074.6,2074.4,14.54806]
[1742857674120,0.27240596,2074.6,2074.4,9.72751]
[1742857674916,0.27240596,2074.6,2074.4,14.54809]
[1742857675416,0.27240596,2074.6,2074.4,9.72751]
[1742857675817,0.27240596,2074.6,2074.4,14.54805]
[1742857677419,0.27240596,2074.6,2074.4,9.72751]
[1742857677618,0.27240596,2074.6,2074.4,14.54805]
[1742857678116,0.27240596,2074.6,2074.5,4.82043]
[1742857678285,0.27240596,2074.6,2074.4,9.72753]
[1742857678488,0.27240596,2074.6,2074.4,9.72748]
[1742857678692,0.27240596,2074.6,2074.4,14.54805]
[1742857678902,0.27240596,2074.6,2074.5,4.82043]
[1742857679113,0.27240596,2074.6,2074.4,14.54811]
[1742857679415,0.27240596,2074.6,2074.5,4.82043]
[1742857681312,0.079,2074.7,2074.6,4.8202]
[1742857681623,0.32878607,2074.7,2074.6,4.8202]
[1742857681843,0.079,2074.7,2074.6,4.8202]
[1742857682023,0.32878607,2074.7,2074.6,4.8202]
[1742857682222,0.079,2074.7,2074.6,6.757015]
[1742857682418,0.32939776,2074.7,2074.6,6.757015]
[1742857682618,0.079,2074.7,2074.6,6.757015]
[1742857682926,0.32987344,2074.7,2074.6,6.757015]
[1742857683133,0.079,2074.7,2074.6,6.757015]
[1742857683817,0.8687,2074.7,2074.3,25.473]
[1742857684019,0.32987344,2074.7,2074.5,4.82039]
[1742857684221,0.32987344,2074.7,2074.6,3.0]
[1742857684404,3.44e-06,2074.7,2074.6,7.86838655]
[1742857684602,0.09600307,2075.4,2075.3,4.81858]
[1742857684921,0.28613826,2075.4,2075.3,4.876]
[1742857685303,0.19013519,2075.4,2075.3,4.876]
[1742857685503,11.73364357,2075.6,2075.3,4.876]
[1742857685717,0.190346,2075.5,2075.3,4.876]
[1742857686115,5.008516,2075.5,2075.3,4.876]
[1742857686319,0.09600307,2075.4,2075.3,4.876]
[1742857686513,0.28613826,2075.4,2075.3,4.876]
[1742857688208,0.19013519,2075.4,2075.3,4.876]
[1742857688408,0.28613826,2075.4,2075.3,4.876]
[1742857688625,0.09600307,2075.4,2075.3,4.876]
[1742857688821,0.18973484,2075.4,2075.3,4.876]
[1742857689043,0.09600307,2075.4,2075.3,4.876]
[1742857689345,11.73372357,2075.6,2075.3,4.876]
[1742857689506,0.28573791,2075.4,2075.3,4.876]
[1742857690623,0.28573791,2075.4,2075.3,4.826]
[1742857692533,0.18973484,2075.4,2075.3,4.826]
[1742857692718,0.09600307,2075.4,2075.3,4.826]
[1742857692918,0.28573791,2075.4,2075.3,4.826]
[1742857693617,0.28573791,2075.4,2075.3,4.726]
[1742857693818,0.18973484,2075.4,2075.3,4.726]
[1742857694122,0.09600307,2075.4,2075.3,4.726]
[1742857694456,0.28573791,2075.4,2075.3,4.726]
[1742857694639,0.09600307,2075.4,2075.3,4.726]
[1742857694839,0.28573791,2075.4,2075.3,4.726]
[1742857695045,0.09600307,2075.4,2075.3,4.726]
[1742857695237,0.28573791,2075.4,2075.3,4.726]
[1742857695417,0.09600307,2075.4,2075.3,4.726]
[1742857695618,0.28613826,2075.4,2075.3,4.726]
[1742857695815,0.09600307,2075.4,2075.3,4.726]
[1742857696020,0.19013519,2075.4,2075.3,4.726]
[1742857696259,6.91568357,2075.6,2075.4,4.8183]
[1742857696457,6.12598357,2075.6,2075.3,9.54454]
[1742857696751,6.12598357,2075.6,2075.4,4.81833]
[1742857696929,6.12598357,2075.6,2075.4,4.81823]
[1742857697117,6.12598357,2075.6,2075.5,4.81811]
[1742857699956,6.0299805,2075.6,2075.5,4.81811]
[1742857700455,6.12598357,2075.6,2075.5,4.81811]
[1742857701819,0.09600307,2075.6,2075.5,4.81811]
[1742857702223,0.28891851,2075.6,2075.5,4.81811]
[1742857702467,0.09600307,2075.8,2075.5,4.81811]
[1742857702949,0.19312619,2075.7,2075.6,4.81785]
[1742857703156,0.09600307,2075.8,2075.6,4.81785]
[1742857703353,0.09600307,2075.8,2075.5,4.81798]
[1742857703556,0.19312619,2075.7,2075.6,4.81788]
[1742857703754,0.09600307,2075.8,2075.5,4.81798]
[1742857704050,0.19312619,2075.7,2075.5,4.81798]
[1742857704362,0.19291544,2075.6,2075.5,9.636]
[1742857704569,0.19291544,2075.6,2075.5,4.81798]
[1742857704767,0.19291544,2075.6,2075.5,4.86615509]
[1742857704955,0.09600307,2075.8,2075.6,4.81787]
[1742857705160,0.19312619,2075.7,2075.6,4.81787]
[1742857705362,0.7572,2075.9,2075.6,4.81787]
[1742857705670,0.19312619,2075.7,2075.6,4.81787]
[1742857705870,0.85320307,2075.9,2075.6,4.81787]
[1742857706038,0.19312619,2075.7,2075.6,4.81787]
[1742857706237,0.7572,2075.9,2075.6,4.81787]
[1742857706437,0.09600307,2075.6,2075.3,9.5444]
[1742857706645,0.09600307,2075.6,2075.3,14.36279]
[1742857706850,0.19478473,2075.5,2075.4,4.81834]
[1742857708783,0.19478473,2075.5,2075.3,9.54439]
[1742857708982,0.19478473,2075.5,2075.4,4.81834]
[1742857711054,0.19478473,2075.5,2075.4,7.81834]
[1742857711250,0.85320307,2075.9,2075.6,4.81778]
[1742857711641,0.85320307,2075.9,2075.6,9.63555]
[1742857711979,0.85320307,2075.9,2075.7,4.81757]
[1742857712666,0.85320307,2075.9,2075.8,4.783]
[1742857712858,0.09600307,2076.1,2075.8,4.783]
[1742857713053,0.09600307,2076.1,2075.8,9.60033]
[1742857714081,4.91274307,2076.1,2075.8,4.783]
[1742857714872,4.81697,2076.0,2075.8,4.783]
[1742857715460,0.09600307,2076.1,2075.8,9.6004]
[1742857716348,0.09600307,2076.1,2075.8,4.783]
[1742857716550,0.09600307,2076.1,2075.8,9.6004]
[1742857717177,0.18276781,2076.0,2075.8,9.6004]
[1742857717385,0.18276781,2076.0,2075.9,4.81718]
[1742857717578,0.09600307,2076.3,2076.1,4.81662]
[1742857718096,0.16885623,2076.2,2076.1,4.81662]
[1742857718495,0.16750716,2076.2,2076.1,4.81662]
[1742857718888,0.09600307,2076.5,2076.2,4.81642]
[1742857719095,0.09600307,2076.3,2076.0,4.81694]
[1742857719289,0.1688326,2076.2,2076.1,4.766]
[1742857719979,0.09600307,2076.3,2076.1,4.766]
[1742857720397,0.16858256,2076.2,2076.1,4.766]
[1742857720891,0.09600307,2076.3,2076.1,4.766]
[1742857721228,0.16858256,2076.2,2076.1,4.766]
[1742857721391,0.09600307,2076.3,2076.1,4.766]
[1742857721592,0.16858256,2076.2,2076.1,4.766]
[1742857721903,0.09600307,2076.3,2076.1,9.58262]
[1742857722085,0.16858256,2076.2,2076.1,9.58262]
[1742857722488,0.09600307,2076.3,2076.1,9.58262]
[1742857722714,0.16818246,2076.2,2076.1,9.58262]
[1742857723229,0.8278,2076.1,2076.0,4.754]
[1742857723735,0.8278,2076.1,2075.8,25.83362125]
[1742857723899,5.64457,2076.1,2076.0,4.772]
[1742857724501,0.8278,2076.1,2076.0,4.772]
[1742857724698,5.64452,2076.1,2076.0,4.772]
[1742857724895,5.74052307,2076.1,2076.0,4.772]
[1742857725120,4.81696,2076.0,2075.9,4.767]
[1742857725328,4.81696,2076.0,2075.8,25.465]
[1742857725533,0.09600307,2075.9,2075.8,30.232]
[1742857726000,0.09600307,2075.9,2075.8,4.767]
[1742857727094,0.8278,2076.2,2075.8,9.58425]
[1742857727432,0.09600307,2075.9,2075.8,9.58437]
[1742857727727,0.09600307,2075.9,2075.8,4.767]
[1742857729832,0.09600307,2075.9,2075.8,9.58441]
[1742857730839,0.09600307,2075.9,2075.8,4.767]
[1742857732034,0.26222582,2075.9,2075.8,4.767]
[1742857732237,0.09600307,2075.9,2075.8,4.767]
[1742857732444,0.26222582,2075.9,2075.8,4.767]
[1742857732741,0.26236265,2075.9,2075.8,4.767]
[1742857733417,0.26236265,2075.9,2075.8,6.24322119]
[1742857733619,0.16635958,2075.9,2075.8,11.06063119]
[1742857734011,0.09600307,2076.3,2075.9,4.81718]
[1742857734315,0.09600307,2076.3,2076.1,4.81668]
[1742857734631,0.09600307,2076.3,2076.1,5.298268]
[1742857734829,0.09600307,2076.3,2076.1,0.481668]
[1742857737345,4.91226307,2076.3,2076.1,0.481668]
[1742857737749,0.09600307,2076.3,2076.1,0.481668]
[1742857738633,0.09600307,2076.3,2075.9,4.81717]
[1742857738841,4.91234307,2076.3,2075.9,4.81717]
[1742857739141,0.09600307,2076.1,2075.8,15.87787119]
[1742857739445,0.09600307,2076.1,2075.9,4.81708]
[1742857740266,0.09600307,2076.1,2075.8,1.47622119]
[1742857740565,0.09600307,2076.1,2076.0,4.725]
[1742857741234,0.09600307,2076.1,2075.7,25.462]
[1742857741435,10.51389307,2075.9,2075.7,25.462]
[1742857741764,4.81741,2075.8,2075.7,30.187]
[1742857742358,4.81741,2075.8,2075.7,25.462]
[1742857742562,5.69653307,2075.9,2075.2,4.8188]
[1742857742563,0.09600307,2075.5,2075.2,4.8188]
[1742857742878,0.09600307,2075.5,2075.3,0.48188]
[1742857743972,4.81834,2075.4,2075.3,0.48188]
[1742857744172,4.91418307,2075.5,2075.3,0.48188]
[1742857744369,4.91418307,2075.5,2075.2,4.724]
[1742857744576,4.81844,2075.4,2075.2,4.724]
[1742857745140,4.91417307,2075.5,2075.2,4.724]
[1742857747077,0.16123733,2075.4,2075.2,4.724]
[1742857747679,0.16123733,2075.4,2075.2,9.54263]
[1742857747972,0.16123733,2075.4,2075.3,5.8210235]
[1742857748150,0.09600307,2075.6,2075.3,5.8210235]
[1742857748349,0.09600307,2075.4,2075.3,5.772843]
[1742857748564,0.1614877,2075.4,2075.3,5.772843]